[Event "Late-Titled-Tuesday-Blitz-February-20-2024"]
[Site "Chess.com"]
[Date "2024.02.20"]
[Round "5"]
[White "JackRodgers"]
[Black "micke12a"]
[Result "1-0"]
[WhiteElo "2555"]
[BlackElo "2349"]
[TimeControl "180+1"]
[EndTime "14:53:21 PST"]
[Termination "JackRodgers won by resignation"]

1. d4 {[%clk 0:02:57.5]} 1... Nf6 {[%clk 0:03:00.1]} 2. Bg5 {[%clk 0:02:56.6]}
2... d5 {[%clk 0:02:59.4]} 3. Bxf6 {[%clk 0:02:56.5]} 3... exf6 {[%clk
0:02:58.8]} 4. e3 {[%clk 0:02:56.3]} 4... Bd6 {[%clk 0:02:58.4]} 5. g3 {[%clk
0:02:55.1]} 5... O-O {[%clk 0:02:58.2]} 6. Bg2 {[%clk 0:02:53.7]} 6... Be6
{[%clk 0:02:57.2]} 7. c4 {[%clk 0:02:53.5]} 7... Bb4+ {[%clk 0:02:53.2]} 8. Nc3
{[%clk 0:02:52.1]} 8... c6 {[%clk 0:02:50.5]} 9. cxd5 {[%clk 0:02:49]} 9... Bxd5
{[%clk 0:02:49.4]} 10. Nf3 {[%clk 0:02:43.1]} 10... Qa5 {[%clk 0:02:19]} 11. Qc2
{[%clk 0:02:38.7]} 11... c5 {[%clk 0:02:17.2]} 12. O-O {[%clk 0:02:30.2]} 12...
Bc4 {[%clk 0:02:07.3]} 13. Rfd1 {[%clk 0:02:27.1]} 13... Nc6 {[%clk 0:02:05.8]}
14. Ne4 {[%clk 0:02:22.6]} 14... Bd5 {[%clk 0:01:52.9]} 15. a3 {[%clk
0:02:22.6]} 15... cxd4 {[%clk 0:01:30.3]} 16. axb4 {[%clk 0:02:14.9]} 16... Qxb4
{[%clk 0:01:29.4]} 17. Nxd4 {[%clk 0:02:07.6]} 17... Rac8 {[%clk 0:01:16.7]} 18.
Nxc6 {[%clk 0:01:58.5]} 18... Rxc6 {[%clk 0:01:12]} 19. Qd2 {[%clk 0:01:58.5]}
19... Qxd2 {[%clk 0:00:56.7]} 20. Rxd2 {[%clk 0:01:59.4]} 20... Bb3 {[%clk
0:00:52.5]} 21. Nc3 {[%clk 0:01:51]} 21... Ra6 {[%clk 0:00:31]} 22. Rxa6 {[%clk
0:01:49.1]} 22... bxa6 {[%clk 0:00:31.9]} 23. Bd5 {[%clk 0:01:47]} 23... Rd8
{[%clk 0:00:25.2]} 24. Bxf7+ {[%clk 0:01:44.7]} 24... Kxf7 {[%clk 0:00:24.5]}
25. Rxd8 {[%clk 0:01:45.6]} 1-0

[Event "Late-Titled-Tuesday-Blitz-February-20-2024"]
[Site "Chess.com"]
[Date "2024.02.20"]
[Round "5"]
[White "tptagain"]
[Black "Sanyura"]
[Result "1-0"]
[WhiteElo "2938"]
[BlackElo "2605"]
[TimeControl "180+1"]
[EndTime "14:53:27 PST"]
[Termination "tptagain won by resignation"]

1. Nf3 {[%clk 0:03:00.9]} 1... Nf6 {[%clk 0:02:48.5]} 2. d4 {[%clk 0:03:00.7]}
2... g6 {[%clk 0:02:49]} 3. Bg5 {[%clk 0:03:01.2]} 3... Bg7 {[%clk 0:02:49.4]}
4. Nbd2 {[%clk 0:03:01.8]} 4... O-O {[%clk 0:02:49.8]} 5. e4 {[%clk 0:03:02.2]}
5... d6 {[%clk 0:02:50.5]} 6. h3 {[%clk 0:03:01.1]} 6... Nbd7 {[%clk 0:02:49.5]}
7. Bd3 {[%clk 0:02:59.5]} 7... e5 {[%clk 0:02:49.9]} 8. c3 {[%clk 0:02:59.9]}
8... c6 {[%clk 0:02:47.4]} 9. O-O {[%clk 0:02:59.2]} 9... h6 {[%clk 0:02:41.3]}
10. Be3 {[%clk 0:02:54.9]} 10... exd4 {[%clk 0:02:37.1]} 11. cxd4 {[%clk
0:02:54.2]} 11... Re8 {[%clk 0:02:35.8]} 12. Bf4 {[%clk 0:02:49.4]} 12... Nf8
{[%clk 0:02:22.8]} 13. Re1 {[%clk 0:02:43.8]} 13... Ne6 {[%clk 0:02:14.4]} 14.
Bh2 {[%clk 0:02:43.6]} 14... Nh5 {[%clk 0:02:10.1]} 15. Nb3 {[%clk 0:02:34.1]}
15... a5 {[%clk 0:02:03.3]} 16. a4 {[%clk 0:02:34.1]} 16... d5 {[%clk
0:01:32.4]} 17. e5 {[%clk 0:02:34]} 17... Qb6 {[%clk 0:01:31.8]} 18. Bc2 {[%clk
0:02:29.3]} 18... c5 {[%clk 0:01:28.1]} 19. dxc5 {[%clk 0:02:27]} 19... Nxc5
{[%clk 0:01:28.1]} 20. Nxc5 {[%clk 0:02:27]} 20... Qxc5 {[%clk 0:01:28]} 21. g4
{[%clk 0:02:25.5]} 21... d4 {[%clk 0:00:50.9]} 22. gxh5 {[%clk 0:02:23.4]} 22...
Bxh3 {[%clk 0:00:50.8]} 23. hxg6 {[%clk 0:02:19.6]} 23... Rad8 {[%clk
0:00:18.1]} 24. gxf7+ {[%clk 0:02:09.4]} 24... Kxf7 {[%clk 0:00:19]} 25. Bb3+
{[%clk 0:02:09.2]} 25... Kf8 {[%clk 0:00:18.9]} 26. Nh4 {[%clk 0:01:58.8]} 26...
Qb6 {[%clk 0:00:07.4]} 1-0

[Event "Late-Titled-Tuesday-Blitz-February-20-2024"]
[Site "Chess.com"]
[Date "2024.02.20"]
[Round "5"]
[White "Firouzja2003"]
[Black "rezamahdavi2008"]
[Result "1-0"]
[WhiteElo "3111"]
[BlackElo "2843"]
[TimeControl "180+1"]
[EndTime "14:53:30 PST"]
[Termination "Firouzja2003 won by resignation"]

1. d4 {[%clk 0:02:59.1]} 1... Nf6 {[%clk 0:02:59.5]} 2. e3 {[%clk 0:02:59.7]}
2... g6 {[%clk 0:02:58.3]} 3. Ne2 {[%clk 0:03:00.3]} 3... Bg7 {[%clk 0:02:58.9]}
4. c4 {[%clk 0:03:00.4]} 4... d6 {[%clk 0:02:59.5]} 5. Nbc3 {[%clk 0:03:00.6]}
5... O-O {[%clk 0:03:00.1]} 6. g3 {[%clk 0:02:59.5]} 6... Nc6 {[%clk 0:03:00]}
7. Bg2 {[%clk 0:02:58.9]} 7... e5 {[%clk 0:03:00.6]} 8. O-O {[%clk 0:02:59.3]}
8... Re8 {[%clk 0:02:59.8]} 9. h3 {[%clk 0:02:59.5]} 9... exd4 {[%clk
0:02:58.8]} 10. exd4 {[%clk 0:02:59.8]} 10... Bf5 {[%clk 0:02:57.4]} 11. g4
{[%clk 0:02:55.5]} 11... Bd7 {[%clk 0:02:55.4]} 12. Ng3 {[%clk 0:02:55.1]} 12...
h6 {[%clk 0:02:49.7]} 13. Be3 {[%clk 0:02:54.2]} 13... Ne7 {[%clk 0:02:42.4]}
14. Qd2 {[%clk 0:02:53.6]} 14... Kh7 {[%clk 0:02:42.8]} 15. Bxb7 {[%clk
0:02:52.4]} 15... Rb8 {[%clk 0:02:37.3]} 16. Bg2 {[%clk 0:02:52.2]} 16... c6
{[%clk 0:02:30.7]} 17. Bf4 {[%clk 0:02:50.1]} 17... Be6 {[%clk 0:02:23.1]} 18.
d5 {[%clk 0:02:44.9]} 18... cxd5 {[%clk 0:02:23]} 19. cxd5 {[%clk 0:02:45.3]}
19... Bc8 {[%clk 0:02:22.6]} 20. Rfe1 {[%clk 0:02:38.3]} 20... Ba6 {[%clk
0:02:22.9]} 21. Rac1 {[%clk 0:02:31]} 21... Qb6 {[%clk 0:02:17.7]} 22. b3 {[%clk
0:02:30.8]} 22... Rbc8 {[%clk 0:02:11.4]} 23. Nge4 {[%clk 0:02:25.7]} 23... Nxe4
{[%clk 0:02:07.8]} 24. Nxe4 {[%clk 0:02:21.6]} 24... Rxc1 {[%clk 0:02:07.7]} 25.
Rxc1 {[%clk 0:02:21.6]} 25... Rd8 {[%clk 0:02:01.3]} 26. Be3 {[%clk 0:02:17.6]}
26... Qb7 {[%clk 0:01:54.3]} 27. Qa5 {[%clk 0:02:15.2]} 27... Rd7 {[%clk
0:01:48.2]} 28. Bf4 {[%clk 0:02:11.6]} 28... Nc8 {[%clk 0:01:36.8]} 29. Rc6
{[%clk 0:01:58]} 29... Bd3 {[%clk 0:01:35.7]} 30. Nxd6 {[%clk 0:01:51]} 30...
Nxd6 {[%clk 0:01:34.6]} 31. Bxd6 {[%clk 0:01:50.4]} 31... Qa8 {[%clk 0:01:25.2]}
32. Bf4 {[%clk 0:01:38.8]} 32... Qe8 {[%clk 0:01:23.7]} 33. Qd2 {[%clk
0:01:38.6]} 33... Bb5 {[%clk 0:01:23]} 34. Rc7 {[%clk 0:01:38.1]} 34... Rxc7
{[%clk 0:01:04.8]} 35. Bxc7 {[%clk 0:01:37.9]} 35... Bd7 {[%clk 0:00:59.9]} 36.
Qe3 {[%clk 0:01:37.2]} 1-0

[Event "Late-Titled-Tuesday-Blitz-February-20-2024"]
[Site "Chess.com"]
[Date "2024.02.20"]
[Round "5"]
[White "EcosseKillie"]
[Black "Muracle"]
[Result "0-1"]
[WhiteElo "2170"]
[BlackElo "2475"]
[TimeControl "180+1"]
[EndTime "14:53:33 PST"]
[Termination "Muracle won by resignation"]

1. d4 {[%clk 0:03:00.9]} 1... Nf6 {[%clk 0:02:55.1]} 2. Bg5 {[%clk 0:03:00.5]}
2... e6 {[%clk 0:02:53.6]} 3. e4 {[%clk 0:03:00.2]} 3... h6 {[%clk 0:02:52.8]}
4. Bxf6 {[%clk 0:02:59.8]} 4... Qxf6 {[%clk 0:02:53.7]} 5. c3 {[%clk 0:03:00.6]}
5... d5 {[%clk 0:02:54]} 6. Nd2 {[%clk 0:03:00.3]} 6... c5 {[%clk 0:02:52.8]} 7.
e5 {[%clk 0:02:57.9]} 7... Qd8 {[%clk 0:02:51.8]} 8. Ngf3 {[%clk 0:02:53.1]}
8... Nc6 {[%clk 0:02:52.2]} 9. a3 {[%clk 0:02:53.5]} 9... Qb6 {[%clk 0:02:52.8]}
10. b4 {[%clk 0:02:53.2]} 10... cxd4 {[%clk 0:02:53]} 11. cxd4 {[%clk
0:02:52.6]} 11... Nxd4 {[%clk 0:02:48.9]} 12. Nxd4 {[%clk 0:02:42.7]} 12... Qxd4
{[%clk 0:02:49.8]} 13. Bb5+ {[%clk 0:02:43]} 13... Bd7 {[%clk 0:02:48]} 14.
Bxd7+ {[%clk 0:02:43]} 14... Kxd7 {[%clk 0:02:48.9]} 15. Qa4+ {[%clk 0:02:27.9]}
15... Kd8 {[%clk 0:02:40.7]} 16. Rc1 {[%clk 0:02:11.8]} 16... Qxe5+ {[%clk
0:02:37.6]} 17. Kf1 {[%clk 0:02:12.1]} 17... Qd4 {[%clk 0:02:24.6]} 18. Nf3
{[%clk 0:01:57.6]} 18... Qd3+ {[%clk 0:02:17]} 19. Kg1 {[%clk 0:01:56.8]} 19...
Bd6 {[%clk 0:02:15.2]} 20. Rd1 {[%clk 0:01:32.2]} 20... Qa6 {[%clk 0:02:10.2]}
21. Qb3 {[%clk 0:01:18.9]} 21... Rc8 {[%clk 0:02:08.3]} 22. g3 {[%clk
0:01:16.7]} 22... Qc4 {[%clk 0:02:07.8]} 23. Qe3 {[%clk 0:00:57.7]} 23... Ke7
{[%clk 0:02:04.6]} 24. Kg2 {[%clk 0:00:57.7]} 24... b6 {[%clk 0:01:53.6]} 25.
Nd4 {[%clk 0:00:57.6]} 25... Kd7 {[%clk 0:01:52.3]} 26. Rhe1 {[%clk 0:00:53.1]}
26... Rhe8 {[%clk 0:01:45.6]} 27. Rc1 {[%clk 0:00:52.9]} 27... Qa6 {[%clk
0:01:44.6]} 28. b5 {[%clk 0:00:48.9]} 28... Qxa3 {[%clk 0:01:42.3]} 29. Qf4
{[%clk 0:00:38.4]} 29... Bxf4 {[%clk 0:01:39.5]} 0-1

[Event "Late-Titled-Tuesday-Blitz-February-20-2024"]
[Site "Chess.com"]
[Date "2024.02.20"]
[Round "5"]
[White "Jadro9"]
[Black "TigrVShlyape"]
[Result "0-1"]
[WhiteElo "2631"]
[BlackElo "2924"]
[TimeControl "180+1"]
[EndTime "14:53:45 PST"]
[Termination "TigrVShlyape won by resignation"]

1. e4 {[%clk 0:03:00.9]} 1... c5 {[%clk 0:02:56.9]} 2. Nc3 {[%clk 0:02:53.4]}
2... e6 {[%clk 0:02:56]} 3. Nge2 {[%clk 0:02:50.6]} 3... a6 {[%clk 0:02:53.8]}
4. g3 {[%clk 0:02:50]} 4... b5 {[%clk 0:02:53.9]} 5. Bg2 {[%clk 0:02:50.2]} 5...
Bb7 {[%clk 0:02:53.7]} 6. d4 {[%clk 0:02:48.9]} 6... cxd4 {[%clk 0:02:51.9]} 7.
Nxd4 {[%clk 0:02:47]} 7... Nc6 {[%clk 0:02:50]} 8. Nxc6 {[%clk 0:02:38.3]} 8...
Bxc6 {[%clk 0:02:48.4]} 9. O-O {[%clk 0:02:39]} 9... Ne7 {[%clk 0:02:46.5]} 10.
Be3 {[%clk 0:02:34.3]} 10... Ng6 {[%clk 0:02:46]} 11. f4 {[%clk 0:02:34.1]}
11... Qc7 {[%clk 0:02:28.9]} 12. Qd4 {[%clk 0:02:31.7]} 12... Rc8 {[%clk
0:02:10.8]} 13. a3 {[%clk 0:02:30]} 13... Bb7 {[%clk 0:02:08.2]} 14. Rad1 {[%clk
0:02:28]} 14... f6 {[%clk 0:02:03.3]} 15. f5 {[%clk 0:02:23.7]} 15... Ne5 {[%clk
0:02:00.1]} 16. fxe6 {[%clk 0:02:24]} 16... dxe6 {[%clk 0:01:59.6]} 17. Bh3
{[%clk 0:02:24.6]} 17... Kf7 {[%clk 0:01:51.5]} 18. Qb6 {[%clk 0:01:49.4]} 18...
Qxb6 {[%clk 0:01:49.8]} 19. Bxb6 {[%clk 0:01:50.1]} 19... Bxa3 {[%clk
0:01:27.3]} 20. bxa3 {[%clk 0:01:47.5]} 20... Rxc3 {[%clk 0:01:26.9]} 21. Rd6
{[%clk 0:01:45]} 21... Re8 {[%clk 0:01:22.5]} 22. Bg2 {[%clk 0:01:35.1]} 22...
Rxc2 {[%clk 0:01:21.3]} 23. Bd4 {[%clk 0:01:35.5]} 23... Nc4 {[%clk 0:01:11.4]}
24. Rd7+ {[%clk 0:01:33]} 24... Re7 {[%clk 0:01:11.8]} 25. Rd8 {[%clk
0:01:33.4]} 25... Rd2 {[%clk 0:01:04.1]} 26. a4 {[%clk 0:00:56]} 26... e5 {[%clk
0:01:02.3]} 27. Bb6 {[%clk 0:00:56.1]} 27... Rxg2+ {[%clk 0:01:00.8]} 28. Kxg2
{[%clk 0:00:54.9]} 28... Bxe4+ {[%clk 0:01:00.9]} 29. Kf2 {[%clk 0:00:54.8]}
29... Nxb6 {[%clk 0:01:01.1]} 30. axb5 {[%clk 0:00:55.1]} 30... axb5 {[%clk
0:01:01.2]} 31. Rb8 {[%clk 0:00:55.5]} 0-1

[Event "Late-Titled-Tuesday-Blitz-February-20-2024"]
[Site "Chess.com"]
[Date "2024.02.20"]
[Round "5"]
[White "Jospem"]
[Black "IMRosen"]
[Result "1-0"]
[WhiteElo "3092"]
[BlackElo "2691"]
[TimeControl "180+1"]
[EndTime "14:53:48 PST"]
[Termination "Jospem won by checkmate"]

1. e4 {[%clk 0:03:00.9]} 1... c5 {[%clk 0:03:00.1]} 2. Nf3 {[%clk 0:03:00.3]}
2... Nc6 {[%clk 0:03:00.6]} 3. c3 {[%clk 0:03:00.9]} 3... d5 {[%clk 0:03:00.5]}
4. exd5 {[%clk 0:02:58.2]} 4... Qxd5 {[%clk 0:03:01.4]} 5. d4 {[%clk 0:02:58.8]}
5... e6 {[%clk 0:03:00.3]} 6. Be3 {[%clk 0:02:58.5]} 6... cxd4 {[%clk
0:02:59.2]} 7. cxd4 {[%clk 0:02:59.4]} 7... Nf6 {[%clk 0:02:59.8]} 8. Nc3 {[%clk
0:02:59.9]} 8... Qd6 {[%clk 0:03:00]} 9. Bd3 {[%clk 0:02:58.6]} 9... Be7 {[%clk
0:02:59.4]} 10. Rc1 {[%clk 0:02:58.9]} 10... O-O {[%clk 0:02:59]} 11. O-O {[%clk
0:02:54.7]} 11... Nb4 {[%clk 0:02:59.3]} 12. Bb1 {[%clk 0:02:52.2]} 12... Nbd5
{[%clk 0:02:59.5]} 13. Ne5 {[%clk 0:02:51.6]} 13... b6 {[%clk 0:02:56]} 14. Nxd5
{[%clk 0:02:18.9]} 14... Nxd5 {[%clk 0:02:53.1]} 15. Qd3 {[%clk 0:02:18.7]}
15... g6 {[%clk 0:02:48.7]} 16. Bh6 {[%clk 0:02:18.5]} 16... Rd8 {[%clk
0:02:41.4]} 17. Qf3 {[%clk 0:02:18.7]} 17... f6 {[%clk 0:01:56.8]} 18. Bxg6
{[%clk 0:01:54.7]} 18... hxg6 {[%clk 0:01:47.2]} 19. Qg4 {[%clk 0:01:55]} 19...
Nf4 {[%clk 0:00:30.7]} 20. Bxf4 {[%clk 0:01:54.2]} 20... g5 {[%clk 0:00:31.3]}
21. Qh5 {[%clk 0:01:45.5]} 21... fxe5 {[%clk 0:00:19]} 22. Qg6+ {[%clk
0:01:43.4]} 22... Kf8 {[%clk 0:00:19.4]} 23. Bxe5 {[%clk 0:01:44.1]} 23... Qxe5
{[%clk 0:00:06]} 24. dxe5 {[%clk 0:01:44]} 24... Bb7 {[%clk 0:00:06.9]} 25. f4
{[%clk 0:01:40.2]} 25... g4 {[%clk 0:00:04.4]} 26. f5 {[%clk 0:01:40.7]} 26...
Rd3 {[%clk 0:00:01.5]} 27. fxe6+ {[%clk 0:01:39.5]} 27... Bf3 {[%clk 0:00:02]}
28. Qf7# {[%clk 0:01:39.4]} 1-0

[Event "Late-Titled-Tuesday-Blitz-February-20-2024"]
[Site "Chess.com"]
[Date "2024.02.20"]
[Round "5"]
[White "stollenmonster"]
[Black "jefferyx"]
[Result "0-1"]
[WhiteElo "2864"]
[BlackElo "3025"]
[TimeControl "180+1"]
[EndTime "14:53:50 PST"]
[Termination "jefferyx won by resignation"]

1. e4 {[%clk 0:03:00.9]} 1... c5 {[%clk 0:02:59.2]} 2. Nf3 {[%clk 0:03:00.7]}
2... d6 {[%clk 0:02:59.8]} 3. d4 {[%clk 0:03:00.4]} 3... cxd4 {[%clk 0:03:00.7]}
4. Nxd4 {[%clk 0:03:01.1]} 4... Nf6 {[%clk 0:03:01.1]} 5. Nc3 {[%clk 0:03:01.7]}
5... a6 {[%clk 0:03:01.7]} 6. a4 {[%clk 0:03:01.8]} 6... e5 {[%clk 0:03:00.5]}
7. Nde2 {[%clk 0:03:01.7]} 7... Be7 {[%clk 0:02:55.1]} 8. g3 {[%clk 0:03:02.1]}
8... h5 {[%clk 0:02:25.3]} 9. h3 {[%clk 0:03:01.8]} 9... Be6 {[%clk 0:02:22.6]}
10. Bg2 {[%clk 0:03:02.1]} 10... Qc8 {[%clk 0:02:21.5]} 11. a5 {[%clk
0:02:58.8]} 11... O-O {[%clk 0:02:10.9]} 12. Nd5 {[%clk 0:02:57.2]} 12... Nxd5
{[%clk 0:02:10.7]} 13. exd5 {[%clk 0:02:58.1]} 13... Bf5 {[%clk 0:02:11.5]} 14.
Nc3 {[%clk 0:02:56]} 14... Nd7 {[%clk 0:02:09]} 15. Qxh5 {[%clk 0:02:55.2]}
15... Bxc2 {[%clk 0:02:08.4]} 16. O-O {[%clk 0:02:53.7]} 16... b5 {[%clk
0:02:01.7]} 17. axb6 {[%clk 0:02:52.9]} 17... Nxb6 {[%clk 0:02:01.9]} 18. Ne4
{[%clk 0:02:49.5]} 18... Nxd5 {[%clk 0:01:52.1]} 19. Bg5 {[%clk 0:02:36.7]}
19... Bxg5 {[%clk 0:01:49.9]} 20. Nxg5 {[%clk 0:02:35]} 20... Nf6 {[%clk
0:01:49.9]} 21. Qh4 {[%clk 0:02:35.3]} 21... Qf5 {[%clk 0:01:33.1]} 22. Ra5
{[%clk 0:01:51.7]} 22... d5 {[%clk 0:01:23.8]} 23. f4 {[%clk 0:01:42.3]} 23...
e4 {[%clk 0:01:04.7]} 24. g4 {[%clk 0:01:42.5]} 24... Qd7 {[%clk 0:01:05]} 25.
Rc1 {[%clk 0:01:13.3]} 25... Rfc8 {[%clk 0:01:01]} 26. Qf2 {[%clk 0:00:57.5]}
26... Bd3 {[%clk 0:00:59.8]} 27. Rxc8+ {[%clk 0:00:57.4]} 27... Rxc8 {[%clk
0:01:00.7]} 28. Qd4 {[%clk 0:00:54.8]} 28... Qd6 {[%clk 0:00:58.8]} 29. Qe5
{[%clk 0:00:50.3]} 29... Qb6+ {[%clk 0:00:58.6]} 0-1

[Event "Late-Titled-Tuesday-Blitz-February-20-2024"]
[Site "Chess.com"]
[Date "2024.02.20"]
[Round "5"]
[White "RichardShtivelband"]
[Black "VinzentSpitzl"]
[Result "0-1"]
[WhiteElo "2347"]
[BlackElo "2547"]
[TimeControl "180+1"]
[EndTime "14:53:55 PST"]
[Termination "VinzentSpitzl won by resignation"]

1. e4 {[%clk 0:03:00.9]} 1... c5 {[%clk 0:02:59.4]} 2. Nf3 {[%clk 0:03:00.1]}
2... d6 {[%clk 0:02:59.7]} 3. d4 {[%clk 0:02:59.5]} 3... cxd4 {[%clk 0:03:00.3]}
4. Nxd4 {[%clk 0:02:59.7]} 4... Nf6 {[%clk 0:03:00.7]} 5. Nc3 {[%clk 0:02:59.1]}
5... a6 {[%clk 0:03:00.9]} 6. Be3 {[%clk 0:02:57.4]} 6... e5 {[%clk 0:03:01.2]}
7. Nb3 {[%clk 0:02:55.9]} 7... Be7 {[%clk 0:03:01.3]} 8. f3 {[%clk 0:02:55.5]}
8... Be6 {[%clk 0:03:00.9]} 9. Qd2 {[%clk 0:02:56]} 9... h5 {[%clk 0:03:01.2]}
10. Nd5 {[%clk 0:02:52.3]} 10... Nxd5 {[%clk 0:03:00]} 11. exd5 {[%clk 0:02:53]}
11... Bf5 {[%clk 0:03:00.6]} 12. c4 {[%clk 0:02:50]} 12... Nd7 {[%clk
0:02:59.6]} 13. Be2 {[%clk 0:02:45.8]} 13... a5 {[%clk 0:02:59.3]} 14. O-O
{[%clk 0:02:43.5]} 14... O-O {[%clk 0:02:52.8]} 15. Rae1 {[%clk 0:02:41.9]}
15... Bg6 {[%clk 0:02:51.2]} 16. f4 {[%clk 0:02:38.9]} 16... a4 {[%clk
0:02:40.2]} 17. Nc1 {[%clk 0:02:34.3]} 17... exf4 {[%clk 0:02:34]} 18. Bxf4
{[%clk 0:02:32.8]} 18... Nc5 {[%clk 0:02:34.1]} 19. Nd3 {[%clk 0:02:23.1]} 19...
Ne4 {[%clk 0:02:27]} 20. Qe3 {[%clk 0:02:16.8]} 20... Bf6 {[%clk 0:02:21.2]} 21.
Bf3 {[%clk 0:02:14.8]} 21... Re8 {[%clk 0:02:15.3]} 22. Bxe4 {[%clk 0:01:48.4]}
22... Rxe4 {[%clk 0:02:10.2]} 23. Qg3 {[%clk 0:01:43.3]} 23... Qb6+ {[%clk
0:01:48.4]} 24. Kh1 {[%clk 0:01:38.8]} 24... Rd8 {[%clk 0:01:38.6]} 25. Be3
{[%clk 0:01:27.5]} 25... Qa6 {[%clk 0:01:24.8]} 26. b3 {[%clk 0:01:19.5]} 26...
axb3 {[%clk 0:01:23.6]} 27. axb3 {[%clk 0:01:19.6]} 27... Rg4 {[%clk 0:01:22]}
28. Ra1 {[%clk 0:00:35.9]} 0-1

[Event "Late-Titled-Tuesday-Blitz-February-20-2024"]
[Site "Chess.com"]
[Date "2024.02.20"]
[Round "5"]
[White "Doublekk14"]
[Black "MathiasWomacka"]
[Result "0-1"]
[WhiteElo "2304"]
[BlackElo "2509"]
[TimeControl "180+1"]
[EndTime "14:54:01 PST"]
[Termination "MathiasWomacka won on time"]

1. c4 {[%clk 0:03:00.9]} 1... c5 {[%clk 0:03:00.1]} 2. Nc3 {[%clk 0:03:00.2]}
2... Nf6 {[%clk 0:03:00.4]} 3. Nf3 {[%clk 0:03:00.3]} 3... e6 {[%clk 0:02:58.6]}
4. e3 {[%clk 0:03:00.6]} 4... d5 {[%clk 0:02:57.3]} 5. d4 {[%clk 0:03:00.7]}
5... Nc6 {[%clk 0:02:56.4]} 6. Be2 {[%clk 0:02:59.1]} 6... dxc4 {[%clk
0:02:55.7]} 7. Bxc4 {[%clk 0:02:58.6]} 7... a6 {[%clk 0:02:55.4]} 8. a4 {[%clk
0:02:58.2]} 8... cxd4 {[%clk 0:02:48.7]} 9. exd4 {[%clk 0:02:57.3]} 9... Be7
{[%clk 0:02:49]} 10. O-O {[%clk 0:02:57.2]} 10... O-O {[%clk 0:02:49.4]} 11. h3
{[%clk 0:02:52.7]} 11... b6 {[%clk 0:02:39.3]} 12. Bf4 {[%clk 0:02:51.5]} 12...
Bb7 {[%clk 0:02:38.6]} 13. Re1 {[%clk 0:02:43.3]} 13... Rc8 {[%clk 0:02:35.8]}
14. Ba2 {[%clk 0:02:33.8]} 14... Nb4 {[%clk 0:02:32.9]} 15. Bb1 {[%clk
0:02:25.1]} 15... Nfd5 {[%clk 0:02:23.5]} 16. Bd2 {[%clk 0:02:18.5]} 16... Bf6
{[%clk 0:02:13.7]} 17. Ne5 {[%clk 0:02:16.9]} 17... g6 {[%clk 0:02:05.3]} 18.
Ne4 {[%clk 0:02:06.8]} 18... Bg7 {[%clk 0:02:02.5]} 19. Qf3 {[%clk 0:01:54.2]}
19... Nc6 {[%clk 0:01:57.4]} 20. Qg3 {[%clk 0:01:32.1]} 20... Nxd4 {[%clk
0:01:52.9]} 21. Bg5 {[%clk 0:01:03.4]} 21... f6 {[%clk 0:01:51.5]} 22. Bxf6
{[%clk 0:00:23.1]} 22... Nxf6 {[%clk 0:01:48.7]} 23. Nxg6 {[%clk 0:00:20.8]}
23... hxg6 {[%clk 0:01:43.4]} 24. Qxg6 {[%clk 0:00:19.6]} 24... Nxe4 {[%clk
0:01:35.2]} 25. Bxe4 {[%clk 0:00:18.6]} 25... Bxe4 {[%clk 0:01:32.4]} 26. Rxe4
{[%clk 0:00:18.4]} 26... Qf6 {[%clk 0:01:31]} 0-1

[Event "Late-Titled-Tuesday-Blitz-February-20-2024"]
[Site "Chess.com"]
[Date "2024.02.20"]
[Round "5"]
[White "carloseduar100"]
[Black "Herman-NY"]
[Result "1-0"]
[WhiteElo "2371"]
[BlackElo "2505"]
[TimeControl "180+1"]
[EndTime "14:54:03 PST"]
[Termination "carloseduar100 won by resignation"]

1. e4 {[%clk 0:03:00.2]} 1... e5 {[%clk 0:02:59.7]} 2. Nf3 {[%clk 0:03:00.7]}
2... Nc6 {[%clk 0:02:59.9]} 3. Nc3 {[%clk 0:03:01.6]} 3... d6 {[%clk 0:02:59.4]}
4. d4 {[%clk 0:03:00]} 4... Bd7 {[%clk 0:02:59.8]} 5. dxe5 {[%clk 0:02:58.4]}
5... dxe5 {[%clk 0:03:00.7]} 6. Bc4 {[%clk 0:02:57.9]} 6... h6 {[%clk
0:03:00.7]} 7. O-O {[%clk 0:02:58.2]} 7... Nf6 {[%clk 0:03:00.9]} 8. h3 {[%clk
0:02:58.4]} 8... Bd6 {[%clk 0:03:00.8]} 9. Be3 {[%clk 0:02:58.7]} 9... O-O
{[%clk 0:03:00.8]} 10. a3 {[%clk 0:02:59.1]} 10... Re8 {[%clk 0:02:59.4]} 11.
Qd2 {[%clk 0:02:58.5]} 11... Bf8 {[%clk 0:02:51.5]} 12. Rad1 {[%clk 0:02:58.6]}
12... Be6 {[%clk 0:02:48.2]} 13. Nd5 {[%clk 0:02:51.4]} 13... Nxe4 {[%clk
0:02:46.3]} 14. Qc1 {[%clk 0:02:45.6]} 14... Nd6 {[%clk 0:02:20.7]} 15. Bb3
{[%clk 0:02:38.4]} 15... e4 {[%clk 0:01:50.6]} 16. Nd4 {[%clk 0:02:33.7]} 16...
Nxd4 {[%clk 0:01:49.3]} 17. Rxd4 {[%clk 0:02:34.1]} 17... c6 {[%clk 0:01:39.8]}
18. Nc3 {[%clk 0:02:20.5]} 18... Bxb3 {[%clk 0:01:40]} 19. cxb3 {[%clk
0:02:21.4]} 19... Qf6 {[%clk 0:01:29.8]} 20. Rfd1 {[%clk 0:02:16]} 20... g5
{[%clk 0:01:02.2]} 21. Qc2 {[%clk 0:01:45.8]} 21... Qg6 {[%clk 0:00:51.4]} 22.
Qd2 {[%clk 0:01:34.6]} 22... Re6 {[%clk 0:00:48.5]} 23. b4 {[%clk 0:01:26.3]}
23... a6 {[%clk 0:00:48.5]} 24. Na4 {[%clk 0:01:22.1]} 24... Rae8 {[%clk
0:00:42.3]} 25. Nc5 {[%clk 0:01:22.2]} 25... Rf6 {[%clk 0:00:42.4]} 26. Nd7
{[%clk 0:01:17]} 26... Rfe6 {[%clk 0:00:40.7]} 27. Nxf8 {[%clk 0:01:16.7]} 27...
Kxf8 {[%clk 0:00:37.3]} 28. Rxd6 {[%clk 0:01:16.7]} 28... Rxd6 {[%clk 0:00:37]}
29. Qxd6+ {[%clk 0:01:16.8]} 29... Qxd6 {[%clk 0:00:37.7]} 30. Rxd6 {[%clk
0:01:16.1]} 30... Re6 {[%clk 0:00:33.8]} 31. Rd7 {[%clk 0:01:12.4]} 1-0